bitfinex/quotes_SOLUSD_20241121
["timestamp","ask_amount","ask_price","bid_price","bid_amount"]
[1732198344607,36.84224001,246.87,246.74,36.84224001]
[1732198344807,36.84224001,246.84,246.74,36.84224001]
[1732198345329,36.84224001,246.86,246.76,36.84224001]
[1732198346723,36.84224001,246.84,246.74,40.89484001]
[1732198346925,36.84224001,246.8,246.7,36.84224001]
[1732198348108,40.89414001,246.8,246.7,36.84224001]
[1732198348505,40.89424001,246.8,246.7,36.84224001]
[1732198349406,36.84224001,246.8,246.7,51.02924001]
[1732198349621,36.84224001,246.76,246.66,23.776884]
[1732198349813,36.84224001,246.76,246.67,36.84224001]
[1732198350016,4.0526,246.75,246.67,36.84224001]
[1732198350729,36.84224001,246.82,246.73,36.84224001]
[1732198351623,36.84224001,246.8,246.71,36.84224001]
[1732198351828,4.052,246.79,246.71,36.84224001]
[1732198352527,36.84224001,246.78,246.69,36.84224001]
[1732198353319,36.84224001,246.8,246.71,36.84224001]
[1732198353511,36.84224001,246.78,246.69,36.84224001]
[1732198354607,4.0523,246.77,246.69,36.84224001]
[1732198357516,4.0523,246.77,246.71,36.84224001]
[1732198357915,4.052,246.79,246.73,36.84224001]
[1732198358310,4.052,246.79,246.58,0.5]
[1732198358311,36.84224001,246.74,246.52,0.5]
[1732198358630,36.84224001,246.67,246.55,36.84224001]
[1732198358829,36.84224001,246.65,246.55,36.84224001]
[1732198359037,36.84224001,246.63,246.53,36.84224001]
[1732198359241,36.84224001,246.61,246.51,36.84224001]
[1732198359532,36.84224001,246.63,246.53,36.84224001]
[1732198359909,4.0548,246.62,246.57,36.84224001]
[1732198360213,4.0539,246.67,246.59,36.84224001]
[1732198360525,4.0539,246.67,246.61,36.84224001]
[1732198361525,40.89584001,246.69,246.59,36.84224001]
[1732198361737,36.84224001,246.67,246.57,36.84224001]
[1732198362032,36.84224001,246.63,246.53,36.84224001]
[1732198362208,36.84224001,246.61,246.51,46.98374001]
[1732198362409,36.84224001,246.61,246.51,36.84224001]
[1732198363208,36.84224001,246.59,246.49,36.84224001]
[1732198363630,4.0554,246.58,246.49,40.89904001]
[1732198363810,4.0554,246.58,246.51,36.84224001]
[1732198365017,36.84224001,246.63,246.55,36.84224001]
[1732198365326,4.0544,246.64,246.57,36.84224001]
[1732198365521,4.0539,246.67,246.57,36.84224001]
[1732198365730,36.84224001,246.66,246.55,36.84224001]
[1732198365941,36.84224001,246.66,246.57,36.84224001]
[1732198366117,4.0539,246.67,246.59,36.84224001]
[1732198366633,4.0539,246.67,246.58,22.70047972]
[1732198367323,22.70047972,246.64,246.54,32.84077972]
[1732198367724,22.70047972,246.64,246.54,22.70047972]
[1732198367932,22.70047972,246.66,246.56,22.70047972]
[1732198368439,22.70047972,246.63,246.54,26.75647972]
[1732198369024,22.70047972,246.61,246.52,26.75687972]
[1732198369228,22.70047972,246.61,246.5,26.75717972]
[1732198369429,22.70047972,246.61,246.5,36.89907972]
[1732198369634,4.0548,246.62,246.54,22.70047972]
[1732198370013,4.0548,246.62,246.5,14.1986]
[1732198370014,4.0548,246.62,246.52,22.70047972]
[1732198370214,22.70047972,246.61,246.52,22.70047972]
[1732198370727,22.70047972,246.61,246.53,14.197]
[1732198370929,26.75517972,246.63,246.54,22.70047972]
[1732198371838,22.70047972,246.61,246.53,10.1407]
[1732198372644,22.70047972,246.61,246.53,14.197]
[1732198373434,22.70047972,246.59,246.5,22.70047972]
[1732198373836,22.70047972,246.57,246.48,32.84287972]
[1732198374140,4.0554,246.58,246.5,22.70047972]
[1732198374735,22.70047972,246.55,246.48,14.1994]
[1732198374943,22.70047972,246.55,246.48,36.89987972]
[1732198375233,22.70047972,246.57,246.48,36.89987972]
[1732198375723,26.75617972,246.57,246.48,36.89987972]
[1732198375918,22.70047972,246.55,246.48,10.1424]
[1732198376233,22.70047972,246.53,246.46,4.0573]
[1732198376439,22.70047972,246.51,246.44,4.0576]
[1732198376735,22.70047972,246.51,246.44,26.75807972]
[1732198377734,22.70047972,246.51,246.44,4.0576]
[1732198377735,26.75707972,246.51,246.44,4.0576]
[1732198378243,26.75707972,246.51,246.43,10.1444]
[1732198378442,26.75707972,246.51,246.43,14.2023]
[1732198379633,22.70047972,246.51,246.43,14.2023]
[1732198380528,10.1384,246.59,246.5,22.70047972]
[1732198380529,4.0553,246.59,246.5,22.70047972]
[1732198380839,22.70047972,246.61,246.52,22.70047972]
[1732198381028,26.75547972,246.61,246.52,22.70047972]
[1732198381231,22.70047972,246.59,246.5,22.70047972]
[1732198381829,26.75577972,246.59,246.51,4.0566]
[1732198382350,22.70047972,246.57,246.51,4.0566]
[1732198382549,22.70047972,246.55,246.51,4.0566]
[1732198382850,22.70047972,246.55,246.5,10.1417]
[1732198383026,22.70047972,246.55,246.46,36.90147972]
[1732198383348,22.70047972,246.59,246.5,22.70047972]
[1732198383525,32.87007972,246.63,246.54,22.70047972]
[1732198383729,10.1696,246.63,246.54,22.70047972]
[1732198383917,32.87007972,246.63,246.54,22.70047972]
[1732198384118,10.1696,246.63,246.56,22.70047972]
[1732198384340,6.1149,246.63,246.56,22.70047972]
[1732198384924,6.1149,246.63,246.57,4.0556]
[1732198385126,6.1149,246.63,246.57,14.1947]
[1732198385620,22.70047972,246.67,246.58,22.70047972]
[1732198386239,22.70047972,246.65,246.57,14.1947]
[1732198386937,22.70047972,246.63,246.54,22.70047972]
[1732198387140,22.70047972,246.59,246.52,10.141]
[1732198388132,22.70047972,246.59,246.5,22.70047972]
[1732198388338,26.75577972,246.59,246.5,26.75717972]
[1732198388839,22.70047972,246.57,246.5,4.0567]
[1732198389751,26.75607972,246.57,246.5,4.0567]
[1732198390128,22.70047972,246.55,246.48,4.057]
[1732198390831,22.70047972,246.55,246.47,14.2]
[1732198391569,22.70047972,246.53,246.47,10.1428]
[1732198391753,10.1378,246.61,246.47,10.1428]
[1732198391754,4.0562,246.54,246.47,10.1428]
[1732198392244,22.70047972,246.53,246.43,14.2026]
[1732198392452,22.70047972,246.53,246.44,22.70047972]
[1732198392654,4.0559,246.56,246.48,22.70047972]
[1732198392944,22.70047972,246.55,246.46,22.70047972]
[1732198393543,23.0058,246.54,246.44,22.70047972]
[1732198393724,4.0562,246.54,246.46,22.70047972]
[1732198393932,4.0562,246.54,246.48,22.70047972]
[1732198394139,4.0562,246.54,246.46,22.70047972]
[1732198394546,22.70047972,246.53,246.45,10.144]
[1732198394738,22.70047972,246.51,246.45,10.144]
[1732198395360,22.70047972,246.53,246.45,10.144]
[1732198395538,22.70047972,246.53,246.45,14.2016]
[1732198395725,22.70047972,246.53,246.44,22.70047972]
[1732198395726,4.0564,246.52,246.41,14.2038]
[1732198395930,4.0564,246.52,246.44,22.70047972]
[1732198396539,22.70047972,246.55,246.46,22.70047972]
[1732198397127,22.70047972,246.57,246.48,22.70047972]
[1732198397731,10.1383,246.59,246.46,22.70047972]
[1732198397732,22.70047972,246.55,246.46,22.70047972]
[1732198398448,22.70047972,246.55,246.45,4.0575]
[1732198398652,4.0556,246.58,246.52,22.70047972]
[1732198399044,29.31697972,246.61,246.54,22.70047972]
[1732198399045,6.6165,246.61,246.54,22.70047972]
[1732198399243,6.6165,246.61,246.56,22.70047972]
[1732198399441,10.6715,246.61,246.56,22.70047972]
[1732198400255,10.6715,246.61,246.54,22.70047972]
[1732198401130,39.08977972,246.63,246.51,14.1979]
[1732198401131,4.0539,246.67,246.6,22.70047972]
[1732198401452,4.0539,246.67,246.64,22.70047972]
[1732198401671,22.70047972,246.68,246.6,22.70047972]
[1732198401954,22.70047972,246.64,246.54,22.70047972]
[1732198402259,22.70047972,246.62,246.52,22.70047972]
[1732198403559,4.0549,246.61,246.54,22.70047972]
[1732198404265,4.0546,246.63,246.56,22.70047972]
[1732198405657,22.70047972,246.62,246.54,22.70047972]
[1732198405839,22.70047972,246.6,246.52,22.70047972]
[1732198406867,22.70047972,246.62,246.52,22.70047972]
[1732198407656,4.0549,246.61,246.52,22.70047972]
[1732198409374,4.0549,246.61,246.54,22.70047972]
[1732198410073,22.70047972,246.56,246.47,22.70047972]
[1732198411155,4.0559,246.55,246.47,22.70047972]
[1732198411674,4.0557,246.57,246.51,22.70047972]
[1732198411858,22.70047972,246.6,246.51,22.70047972]
[1732198413446,22.70047972,246.62,246.53,22.70047972]
[1732198413969,22.70047972,246.62,246.45,23.776884]
[1732198413970,22.70047972,246.64,246.57,22.70047972]
[1732198414264,22.70047972,246.66,246.57,22.70047972]
[1732198414470,22.70047972,246.66,246.58,23.776884]
[1732198414640,22.70047972,246.66,246.57,22.70047972]
[1732198416549,22.70047972,246.66,246.48,23.30874088]
[1732198416550,22.70047972,246.64,246.55,22.70047972]
[1732198416750,22.70047972,246.62,246.53,22.70047972]
[1732198417071,22.70047972,246.64,246.55,22.70047972]
[1732198417445,21.7903,246.67,246.57,22.70047972]
[1732198417754,44.49077972,246.67,246.57,22.70047972]
[1732198417960,22.70047972,246.65,246.57,22.70047972]
[1732198418869,44.49077972,246.67,246.57,22.70047972]
[1732198419051,44.49077972,246.67,246.59,22.70047972]
[1732198419756,44.49077972,246.67,246.57,22.70047972]
[1732198420383,44.49077972,246.67,246.58,23.776884]
[1732198420556,21.7903,246.67,246.6,23.776884]
[1732198421677,35.97625261,246.67,246.58,23.776884]
[1732198422475,6.5862,246.74,246.61,14.18595261]
[1732198422672,6.5862,246.74,246.67,14.18595261]
[1732198423350,6.5862,246.74,246.69,14.18595261]
[1732198423952,6.5862,246.74,246.71,14.18595261]
[1732198424351,6.5862,246.74,246.69,14.18595261]
[1732198424769,6.5862,246.74,246.68,22.68107333]
[1732198425573,6.5862,246.74,246.66,22.68107333]
[1732198425947,6.5862,246.74,246.7,22.68107333]
[1732198426649,22.68107333,246.8,246.71,23.776884]
[1732198426849,6.5542,246.81,246.72,22.68107333]
[1732198427072,6.5542,246.81,246.74,22.68107333]
[1732198428272,22.68107333,246.78,246.68,22.68107333]
[1732198428479,22.68107333,246.76,246.69,43.776884]
[1732198428678,22.68107333,246.76,246.68,22.68107333]
[1732198428976,22.68107333,246.76,246.66,22.68107333]
[1732198429877,22.68107333,246.72,246.62,22.68107333]
[1732198430181,22.68107333,246.72,246.64,22.68107333]
[1732198430960,22.68107333,246.74,246.64,22.68107333]
[1732198431166,22.68107333,246.76,246.68,22.68107333]
[1732198432484,22.68107333,246.76,246.66,22.68107333]
[1732198432681,6.5542,246.81,246.7,22.68107333]
[1732198432682,22.68107333,246.78,246.7,22.68107333]
[1732198432979,6.5542,246.81,246.72,22.68107333]
[1732198433558,22.68107333,246.8,246.61,24.276884]
[1732198433769,22.68107333,246.8,246.7,22.68107333]
[1732198434087,22.68107333,246.78,246.7,22.68107333]
[1732198434780,22.68107333,246.78,246.61,24.276884]
[1732198434781,22.68107333,246.76,246.68,22.68107333]
[1732198435084,22.68107333,246.76,246.66,22.68107333]
[1732198435470,22.68107333,246.76,246.61,23.776884]
[1732198435471,22.68107333,246.76,246.68,22.68107333]
[1732198435670,22.68107333,246.76,246.66,22.68107333]
[1732198437378,22.68107333,246.78,246.68,22.68107333]
[1732198437694,22.68107333,246.78,246.7,22.68107333]
[1732198438285,22.68107333,246.78,246.62,5.54934813]
[1732198438286,6.5542,246.81,246.74,22.68107333]
[1732198438490,6.5542,246.81,246.76,22.68107333]
[1732198438874,6.5542,246.81,246.65,7.35680612]
[1732198438875,6.5542,246.81,246.74,22.68107333]
[1732198439172,6.0044,246.9,246.66,43.776884]
[1732198439508,6.0044,246.9,246.7,22.68107333]
[1732198439509,22.68107333,246.78,246.7,22.68107333]
[1732198439997,22.68107333,246.76,246.66,42.68107333]
[1732198440170,22.68107333,246.76,246.66,22.68107333]
[1732198440372,22.68107333,246.76,246.68,22.68107333]
[1732198440889,22.68107333,246.76,246.66,22.68107333]
[1732198441278,29.07507333,246.76,246.66,22.68107333]
[1732198441888,22.68107333,246.72,246.63,22.68107333]
[1732198442191,6.394,246.76,246.6,4.59319938]
[1732198442192,22.68107333,246.74,246.65,22.68107333]
[1732198443793,22.68107333,246.74,246.67,22.68107333]
[1732198444098,6.394,246.76,246.67,22.68107333]
[1732198444099,29.07507333,246.76,246.67,22.68107333]
[1732198444478,6.394,246.76,246.69,22.68107333]
[1732198444804,22.68107333,246.84,246.66,23.776884]
[1732198444805,28.91207333,246.82,246.75,22.68107333]
[1732198445012,6.231,246.82,246.75,22.68107333]
[1732198445302,22.68107333,246.78,246.69,22.68107333]
[1732198445679,22.68107333,246.76,246.67,22.68107333]
[1732198445884,22.68107333,246.76,246.68,23.776884]
[1732198446082,22.68107333,246.76,246.67,22.68107333]
[1732198446398,22.68107333,246.76,246.68,23.776884]
[1732198446599,28.91207333,246.82,246.73,22.68107333]
[1732198446782,6.231,246.82,246.74,14.1697692]
[1732198447492,6.231,246.82,246.76,14.1697692]
[1732198448775,15.3555,246.92,246.81,23.776884]
[1732198449084,6.1046,246.94,246.89,14.1697692]
[1732198449287,20.2743692,246.94,246.87,14.1697692]
[1732198449475,20.2743692,246.94,246.81,23.776884]
[1732198449476,20.2743692,246.94,246.85,14.1697692]
[1732198449675,20.2743692,246.94,246.86,23.776884]
[1732198449979,14.1697692,246.92,246.83,14.1697692]
[1732198450176,14.1697692,246.92,246.85,14.1697692]
[1732198450396,20.2743692,246.94,246.85,14.1697692]
[1732198450786,20.2743692,246.94,246.86,23.776884]
[1732198450989,6.1046,246.94,246.88,23.776884]
[1732198451187,15.3555,246.99,246.89,14.1697692]
[1732198451375,15.3555,246.99,246.92,23.776884]
[1732198452876,14.1697692,246.98,246.92,23.776884]
[1732198453076,14.1697692,246.98,246.9,23.776884]
[1732198453476,14.1697692,247.0,246.91,14.1697692]
[1732198453704,14.1697692,247.0,246.9,23.776884]
[1732198453705,14.1697692,247.02,246.95,23.776884]
[1732198455001,14.1697692,247.02,246.94,14.1697692]
[1732198455200,14.1697692,247.02,246.92,14.1697692]
[1732198455401,14.1697692,247.02,246.94,14.1697692]
[1732198455907,14.1697692,247.02,246.92,14.1697692]
[1732198456079,14.1697692,247.0,246.92,14.1697692]
[1732198456279,14.1697692,247.0,246.91,20.0]
[1732198456482,14.1697692,246.98,246.91,20.0]
[1732198456781,6.2415,247.04,246.96,14.1697692]
[1732198457105,15.8813,247.05,247.0,14.1697692]
[1732198458099,20.2504692,247.1,247.0,14.1697692]
[1732198458293,6.0807,247.1,247.02,14.1697692]
[1732198458907,15.4212,247.11,247.02,14.1697692]
[1732198459506,15.4212,247.11,247.04,14.1697692]
[1732198460711,22.62437573,247.08,247.0,20.0]
[1732198460879,22.62437573,247.1,247.0,20.0]
[1732198461086,22.62437573,247.1,247.01,22.62437573]
[1732198461480,15.4212,247.11,247.03,22.62437573]
[1732198461705,22.62437573,247.1,247.01,22.62437573]
[1732198463089,22.62437573,247.12,247.03,22.62437573]
[1732198463609,22.62437573,247.14,247.03,22.62437573]
[1732198464600,22.62437573,247.14,247.04,23.776884]
[1732198465194,22.62437573,247.12,247.03,22.62437573]
[1732198465381,22.62437573,247.12,247.01,22.62437573]
[1732198466392,22.62437573,247.12,247.03,22.62437573]
[1732198467507,22.62437573,247.12,247.01,22.62437573]
[1732198467710,22.62437573,247.08,247.0,23.776884]
[1732198468011,22.62437573,247.1,246.99,22.62437573]
[1732198468511,22.62437573,247.08,246.97,22.62437573]
[1732198468712,22.62437573,247.08,246.99,22.62437573]
[1732198469410,22.62437573,247.1,247.01,22.62437573]
[1732198469794,22.62437573,247.12,247.03,22.62437573]
[1732198470327,22.62437573,247.05,246.87,6.14743009]
[1732198470613,38.36087573,247.05,246.96,22.62437573]
[1732198472491,22.62437573,247.1,246.99,22.62437573]
[1732198473416,22.62437573,247.1,247.01,22.62437573]
[1732198473821,22.62437573,247.08,246.99,23.776884]
[1732198474503,22.62437573,247.1,247.0,22.62437573]
[1732198474703,15.7365,247.12,246.99,23.776884]
[1732198474704,22.62437573,247.08,246.99,23.776884]
[1732198474919,22.62437573,247.1,247.0,22.62437573]
[1732198475093,22.62437573,247.1,247.01,23.776884]
[1732198475296,38.36087573,247.12,247.02,22.62437573]
[1732198475505,22.62437573,247.12,247.03,23.776884]
[1732198476001,22.62437573,247.12,247.04,22.62437573]
[1732198476205,22.62437573,247.14,247.05,23.776884]
[1732198476403,22.62437573,247.16,247.06,42.62437573]
[1732198476614,22.62437573,247.18,247.09,23.776884]
[1732198476795,6.1403,247.24,247.09,23.776884]
[1732198476796,22.62437573,247.16,247.09,23.776884]
[1732198476996,22.62437573,247.16,247.08,20.0]
[1732198477224,22.62437573,247.16,247.09,23.776884]
[1732198477716,22.62437573,247.16,247.06,22.62437573]
[1732198477891,22.62437573,247.16,247.07,23.776884]
[1732198478296,22.62437573,247.18,247.09,23.776884]
[1732198479330,6.1403,247.24,247.06,22.62437573]
[1732198479331,22.62437573,247.14,247.06,22.62437573]
[1732198479622,22.62437573,247.16,247.06,22.62437573]
[1732198480501,22.62437573,247.16,247.07,23.776884]
[1732198481099,22.62437573,247.18,247.08,22.62437573]
[1732198481409,22.62437573,247.2,247.1,22.62437573]
[1732198481615,22.62437573,247.18,247.09,23.776884]
[1732198482400,22.62437573,247.16,247.07,23.776884]
[1732198482611,14.13424531,247.13,247.05,20.0]
[1732198483018,14.13424531,247.11,247.01,14.13424531]
[1732198483531,14.13424531,247.13,247.04,14.13424531]
[1732198484524,14.13424531,247.13,247.05,23.776884]
[1732198485027,6.1403,247.24,247.05,23.776884]
[1732198485205,14.13424531,247.14,247.07,23.776884]
[1732198486226,14.13424531,247.16,247.06,34.13424531]
[1732198486626,14.13424531,247.16,247.07,23.776884]
[1732198486829,14.13424531,247.18,247.1,14.13424531]
[1732198487129,14.13424531,247.18,247.09,23.776884]
[1732198487833,14.13424531,247.18,247.08,34.13424531]
[1732198488037,6.65854123,247.24,247.08,34.13424531]
[1732198488216,14.13424531,247.18,247.08,34.13424531]
[1732198488411,15.9391,247.25,246.99,15.1422]
[1732198488412,14.13424531,247.16,247.07,20.0]
[1732198488729,14.13424531,247.16,247.08,14.13424531]
[1732198489632,14.13424531,247.16,247.07,20.0]
[1732198492112,14.13424531,247.16,247.08,14.13424531]
[1732198492712,14.13424531,247.16,247.07,20.0]
[1732198493236,14.13424531,247.14,246.98,6.471]
[1732198493533,14.13424531,247.16,247.06,14.13424531]
[1732198494515,14.13424531,247.14,247.04,14.13424531]
[1732198494728,14.13424531,247.08,246.98,14.13424531]
[1732198495112,14.13424531,247.08,246.99,14.13424531]
[1732198495312,14.13424531,247.1,246.91,16.61354751]
[1732198495619,14.13424531,247.08,246.98,14.13424531]
[1732198495924,6.1403,247.1,246.95,14.13424531]
[1732198495925,14.13424531,247.06,246.95,14.13424531]
[1732198496114,14.13424531,247.04,246.95,14.13424531]
[1732198496314,14.13424531,247.02,246.93,14.13424531]
[1732198497118,14.13424531,247.0,246.89,14.13424531]
[1732198497943,14.13424531,247.0,246.91,14.13424531]
[1732198498231,14.13424531,247.02,246.91,14.13424531]
[1732198498433,14.13424531,247.04,246.95,14.13424531]
[1732198498728,14.13424531,247.02,246.93,14.13424531]
[1732198499336,14.13424531,247.02,246.86,0.60739345]
[1732198499337,14.13424531,247.04,246.95,14.13424531]
[1732198499629,14.13424531,247.06,246.97,14.13424531]
[1732198500025,14.13424531,247.06,246.95,14.13424531]
[1732198500218,14.13424531,247.04,246.95,14.13424531]
[1732198500745,14.13424531,247.04,246.94,20.0]
[1732198501631,6.1403,247.1,246.88,6.15658973]
[1732198501632,14.13424531,247.02,246.91,20.0]
[1732198501831,14.13424531,247.02,246.93,14.13424531]
[1732198502135,14.13424531,247.04,246.93,14.13424531]
[1732198502340,14.13424531,247.04,246.91,20.0]
[1732198502542,14.13424531,247.04,246.93,14.13424531]
[1732198502844,14.13424531,247.04,246.91,20.0]
[1732198502845,14.13424531,247.04,246.95,14.13424531]
[1732198503139,14.13424531,247.06,246.97,14.13424531]
[1732198503443,14.13424531,247.04,246.95,14.13424531]
[1732198503732,14.13424531,246.98,246.88,14.13424531]
[1732198504034,14.13424531,246.96,246.86,14.13424531]
[1732198504338,14.13424531,246.98,246.9,14.13424531]
[1732198504532,14.13424531,247.0,246.9,14.13424531]
[1732198504737,0.3217,247.03,246.92,14.13424531]
[1732198504738,14.13424531,247.02,246.92,14.13424531]
[1732198505629,14.13424531,247.0,246.91,23.776884]
[1732198506030,14.13424531,247.0,246.92,14.13424531]
[1732198506722,14.13424531,247.0,246.9,14.13424531]
[1732198507325,14.13424531,246.98,246.88,14.13424531]
[1732198507524,14.13424531,246.96,246.86,23.776884]
[1732198507721,14.13424531,246.94,246.85,18.72744469]
[1732198508028,14.13424531,246.96,246.87,14.13424531]
[1732198508339,14.13424531,246.94,246.83,14.13424531]
[1732198508939,14.13424531,246.94,246.85,14.13424531]
[1732198510244,14.13424531,246.92,246.83,14.13424531]
[1732198511040,14.13424531,246.86,246.77,14.13424531]
[1732198511230,14.13424531,246.9,246.81,14.13424531]
[1732198511919,14.13424531,246.88,246.77,14.13424531]
[1732198512119,14.13424531,246.86,246.77,14.13424531]
[1732198512849,14.13424531,246.86,246.68,5.54934813]
[1732198512850,23.776884,246.74,246.51,14.13424531]
[1732198513026,6.5901,246.75,246.6,14.13424531]
[1732198513342,14.13424531,246.72,246.62,14.13424531]
[1732198513725,14.13424531,246.68,246.6,14.13424531]
[1732198513926,14.13424531,246.68,246.58,14.13424531]
[1732198514123,14.13424531,246.66,246.56,14.13424531]
[1732198514639,14.13424531,246.7,246.6,14.13424531]
[1732198514863,14.13424531,246.72,246.62,14.13424531]
[1732198515228,14.13424531,246.7,246.62,14.13424531]
[1732198515444,14.13424531,246.72,246.62,14.13424531]
[1732198516030,6.5901,246.75,246.6,14.13424531]
[1732198516031,14.13424531,246.7,246.6,14.13424531]
[1732198516232,14.13424531,246.66,246.56,14.13424531]
[1732198516431,14.13424531,246.72,246.54,14.13424531]
[1732198516432,14.13424531,246.64,246.54,14.13424531]
[1732198517129,14.13424531,246.66,246.56,14.13424531]
[1732198517326,14.13424531,246.66,246.58,14.13424531]
[1732198518547,14.13424531,246.66,246.56,14.13424531]
[1732198518840,14.13424531,246.66,246.56,20.0]
[1732198519040,14.13424531,246.66,246.57,14.13424531]
[1732198519254,14.13424531,246.66,246.58,20.0]
[1732198519632,14.13424531,246.66,246.56,20.0]
[1732198520355,14.13424531,246.64,246.56,20.0]
[1732198521443,14.13424531,246.69,246.61,14.13424531]
[1732198521639,14.13424531,246.71,246.63,14.13424531]
[1732198522353,6.5901,246.75,246.67,14.13424531]
[1732198522643,6.5901,246.75,246.68,23.776884]
[1732198523537,20.72434531,246.75,246.68,23.776884]
[1732198524040,6.5901,246.75,246.68,23.776884]
[1732198524241,20.72434531,246.75,246.66,43.776884]
[1732198524448,14.13424531,246.71,246.64,20.0]
[1732198525326,14.13424531,246.69,246.56,0.5]
[1732198525646,14.13424531,246.67,246.6,43.776884]
[1732198525845,14.13424531,246.67,246.6,20.0]
[1732198526428,14.13424531,246.69,246.6,20.0]
[1732198527229,14.13424531,246.71,246.62,20.0]
[1732198527969,14.13424531,246.73,246.63,37.91112931]
[1732198528156,14.13424531,246.73,246.64,20.0]
[1732198528446,6.5901,246.75,246.64,20.0]
[1732198528447,14.13424531,246.71,246.64,20.0]
[1732198528749,14.13424531,246.69,246.64,20.0]
[1732198529049,14.13424531,246.69,246.62,20.0]
[1732198529550,14.13424531,246.71,246.63,14.13424531]
[1732198529732,14.13424531,246.71,246.62,20.0]
[1732198529927,14.13424531,246.69,246.62,20.0]
[1732198530333,14.13424531,246.71,246.62,20.0]
[1732198530531,14.13424531,246.69,246.62,20.0]
[1732198530849,14.13424531,246.67,246.59,37.91112931]
[1732198531250,14.13424531,246.67,246.6,20.0]
[1732198531731,14.13424531,246.67,246.57,14.13424531]
[1732198532255,14.13424531,246.67,246.58,20.0]
[1732198533053,14.13424531,246.65,246.58,20.0]
[1732198533656,14.13424531,246.63,246.56,20.0]
[1732198533958,14.13424531,246.63,246.53,4.99845375]
[1732198533959,14.13424531,246.63,246.53,19.13269906]
[1732198534135,14.13424531,246.63,246.54,20.0]
[1732198534329,14.13424531,246.63,246.53,14.13424531]
[1732198534641,14.13424531,246.61,246.51,14.13424531]
[1732198535147,14.13424531,246.61,246.48,4.99845375]
[1732198535148,14.13424531,246.63,246.53,14.13424531]
[1732198535348,14.13424531,246.63,246.55,14.13424531]
[1732198535528,16.577,246.64,246.57,14.13424531]
[1732198535941,14.13424531,246.67,246.58,23.776884]
[1732198536254,14.13424531,246.67,246.59,20.0]
[1732198536440,14.13424531,246.67,246.61,20.0]
[1732198537230,14.13424531,246.67,246.59,23.776884]
[1732198537731,14.13424531,246.63,246.57,20.0]
[1732198538354,14.13424531,246.63,246.55,20.0]
[1732198538534,14.13424531,246.63,246.57,20.0]
[1732198538851,14.13424531,246.61,246.52,14.13424531]
[1732198539156,14.13424531,246.59,246.5,14.13424531]
[1732198539350,14.13424531,246.57,246.48,19.13269906]
[1732198539851,14.13424531,246.59,246.5,14.13424531]
[1732198540649,14.13424531,246.61,246.6,10.0]
[1732198541439,14.13424531,246.63,246.6,10.0]
[1732198542049,14.13424531,246.65,246.6,10.0]
[1732198542562,14.13424531,246.63,246.6,10.0]
[1732198543236,14.13424531,246.61,246.6,10.0]
[1732198551234,23.776884,246.6,246.3,1.0]
[1732198551440,14.13424531,246.51,246.42,14.13424531]
[1732198552552,14.13424531,246.51,246.43,20.0]
[1732198553040,14.13424531,246.49,246.4,14.13424531]
[1732198553356,14.13424531,246.49,246.41,20.0]
[1732198554344,14.13424531,246.49,246.43,20.0]
[1732198554543,14.13424531,246.49,246.42,23.776884]
[1732198554743,14.13424531,246.51,246.42,37.91112931]
[1732198554959,14.13424531,246.49,246.42,23.776884]
[1732198555348,13.63424531,246.49,246.42,23.776884]
[1732198556248,36.94098289,246.61,246.42,23.776884]
[1732198556249,14.13424531,246.47,246.42,23.776884]
[1732198556641,23.776884,246.6,246.43,20.0]
[1732198556847,14.13424531,246.51,246.43,20.0]
[1732198557058,14.13424531,246.49,246.43,20.0]
[1732198557358,14.13424531,246.49,246.44,23.776884]
[1732198557558,14.13424531,246.49,246.45,20.0]
[1732198557740,14.13424531,246.49,246.4,14.13424531]
[1732198557942,14.13424531,246.49,246.41,43.776884]
[1732198559448,14.13424531,246.44,246.29,6.3775]
[1732198559653,14.13424531,246.44,246.35,14.13424531]
[1732198560142,14.13424531,246.4,246.29,6.3775]
[1732198560344,29.46134531,246.48,246.27,14.13424531]
[1732198560345,14.13424531,246.38,246.27,14.13424531]
[1732198560760,14.13424531,246.36,246.27,14.13424531]
[1732198561063,14.13424531,246.36,246.17,0.5]
[1732198561064,14.13424531,246.28,246.13,0.5]
[1732198561269,15.3271,246.33,246.23,14.13424531]
[1732198561466,14.13424531,246.33,246.23,14.13424531]
[1732198561865,14.13424531,246.31,246.21,14.13424531]
[1732198562742,14.13424531,246.31,246.24,20.0]
[1732198563176,14.13424531,246.33,246.24,20.0]
[1732198563660,14.13424531,246.31,246.22,20.0]
[1732198563861,14.13424531,246.31,246.24,20.0]
[1732198564063,21.5366,246.46,246.29,14.13424531]
[1732198564261,14.13424531,246.39,246.3,20.0]